fUST/lending_fUST_20250630
["ID","MTS","AMOUNT","RATE_DAILY","PERIOD"]
[368638425,1751257849640,-489.95,0.00020149,2]
[368638426,1751257849650,-622.37,0.00020149,2]
[368638427,1751257849660,-517.03,0.00020149,2]
[368638428,1751257849669,-1633.77,0.00020149,2]
[368638429,1751257849678,-460.0,0.00020149,2]
[368638430,1751257849688,-4932.33,0.00020149,2]
[368638431,1751257849697,-1412.82,0.00020149,2]
[368638432,1751257849708,-460.0,0.00020149,2]
[368638433,1751257849717,-460.0,0.00020149,2]
[368638434,1751257849727,-151.0,0.0002015,2]
[368638435,1751257849737,-4112.45,0.0002015,2]
[368638436,1751257849746,-1086.32,0.0002015,2]
[368638437,1751257849755,-1057.17,0.0002015,2]
[368638438,1751257849765,-460.0,0.0002015,2]
[368638439,1751257849775,-460.0,0.0002015,2]
[368638440,1751257849784,-1680.47,0.0002015,2]
[368638441,1751257849794,-1290.69,0.0002015,2]
[368638442,1751257849804,-935.71,0.0002015,2]
[368638443,1751257849813,-460.0,0.0002015,2]
[368638444,1751257849822,-1903.25,0.0002015,2]
[368638445,1751257849832,-460.0,0.0002015,2]
[368638446,1751257849841,-460.0,0.0002015,2]
[368638447,1751257849851,-460.0,0.00020151,2]
[368638448,1751257849860,-707.14,0.00020151,2]
[368638449,1751257849869,-460.0,0.00020151,2]
[368638450,1751257849879,-366.3004382,0.00020164,2]
[368638451,1751257849888,-194.767845,0.00020187,2]
[368638452,1751257849898,-151.0,0.000202,4]
[368638453,1751257849907,-2674.82394565,0.0002021,2]
[368638454,1751257849916,-4112.22560431,0.00020279,3]
[368638455,1751257849925,-524.55407094,0.0002032,3]
[368638456,1751257849935,-213.84631524,0.0002032,3]
[368638457,1751257849944,-847.41730813,0.0002032,3]
[368638458,1751257849954,-12569.13231816,0.0002032,3]
[368638459,1751257849963,-160.0,0.0002032,3]
[368638460,1751257849973,-2674.82394565,0.00020334,2]
[368638461,1751257849982,-460.0,0.00020414,2]
[368638462,1751257849991,-460.0,0.00020414,2]
[368638463,1751257850001,-1703.57,0.00020414,2]
[368638464,1751257850010,-2602.4,0.00020415,2]
[368638465,1751257850020,-2749.34,0.00020415,2]
[368638466,1751257850029,-475.12,0.00020415,2]
[368638467,1751257850039,-460.0,0.00020415,2]
[368638468,1751257850048,-594.41349287,0.00020415,2]
[368638469,1751257850058,-460.0,0.00020415,2]
[368638470,1751257850067,-2638.81,0.00020415,2]
[368638471,1751257850077,-2329.11,0.00020415,2]
[368638472,1751257850086,-3030.06,0.00020415,2]
[368638473,1751257850095,-460.0,0.00020415,2]
[368638474,1751257850106,-460.0,0.00020415,2]
[368638475,1751257850116,-1427.46,0.00020415,2]
[368638476,1751257850125,-479.18,0.00020415,2]
[368638477,1751257850135,-516.73,0.00020417,2]
[368638478,1751257850144,-460.0,0.00020417,2]
[368638479,1751257850154,-460.0,0.00020418,2]
[368638480,1751257850164,-581.44,0.00020418,2]
[368638481,1751257850173,-573.66,0.00020418,2]
[368638482,1751257850182,-460.0,0.00020418,2]
[368638483,1751257850191,-889.3,0.00020418,2]
[368638484,1751257850201,-460.0,0.00020418,2]
[368638485,1751257850210,-17303.36,0.00020418,2]
[368638486,1751257850219,-460.0,0.00020418,2]
[368638487,1751257850229,-1049.57,0.00020419,2]
[368638488,1751257850238,-460.0,0.00020419,2]
[368638489,1751257850248,-488.34,0.00020419,2]
[368638490,1751257850257,-539.56,0.00020419,2]
[368638491,1751257850267,-460.0,0.00020419,2]
[368638492,1751257850276,-577.66,0.00020419,2]
[368638493,1751257850285,-651.29,0.00020419,2]
[368638494,1751257850294,-889.34,0.00020419,2]
[368638495,1751257850303,-186.28,0.00020423,2]
[368638496,1751257850313,-601.24,0.00020423,2]
[368638497,1751257850322,-460.0,0.00020423,2]
[368638498,1751257850331,-489.95,0.00020423,2]
[368638499,1751257850340,-622.37,0.00020423,2]
[368638500,1751257850350,-517.03,0.00020423,2]
[368638501,1751257850359,-1633.77,0.00020423,2]
[368638502,1751257850369,-4932.33,0.00020423,2]
[368638503,1751257850378,-1412.82,0.00020423,2]
[368638504,1751257850387,-460.0,0.00020423,2]
[368638505,1751257850397,-460.0,0.00020423,2]
[368638506,1751257850406,-151.0,0.00020424,2]
[368638507,1751257850415,-151.0,0.00020424,2]
[368638508,1751257850424,-151.0,0.00020424,2]
[368638509,1751257850433,-151.0,0.00020424,2]
[368638510,1751257850443,-151.0,0.00020424,2]
[368638511,1751257850452,-4112.45,0.00020424,2]
[368638512,1751257850462,-1086.32,0.00020424,2]
[368638513,1751257850471,-1057.17,0.00020424,2]
[368638514,1751257850480,-460.0,0.00020424,2]
[368638515,1751257850489,-460.0,0.00020424,2]
[368638516,1751257850499,-1680.47,0.00020424,2]
[368638517,1751257850508,-1290.69,0.00020424,2]
[368638518,1751257850518,-935.71,0.00020424,2]
[368638519,1751257850527,-460.0,0.00020424,2]
[368638520,1751257850536,-1903.25,0.00020424,2]
[368638521,1751257850546,-460.0,0.00020424,2]
[368638522,1751257850555,-460.0,0.00020424,2]
[368638523,1751257850567,-460.0,0.00020425,2]
[368638524,1751257850577,-707.14,0.00020425,2]
[368638525,1751257850587,-460.0,0.00020425,2]
[368638526,1751257850597,-4112.22560431,0.00020452,3]
[368638527,1751257850606,-151.0,0.0002046,2]
[368638528,1751257850620,-151.0,0.000205,4]
[368638529,1751257850629,-9264.48601578,0.000205,2]
[368638530,1751257850638,-151.0,0.000205,2]
[368638531,1751257850649,-151.0,0.00020548,2]
[368638532,1751257850659,-173.5557,0.0002055,4]
[368638533,1751257850668,-2000.0,0.00020592,2]
[368638534,1751257850677,-151.0,0.00020592,2]
[368638535,1751257850687,-4658.36,0.000206,2]
[368638536,1751257850696,-888.419,0.00020604,2]
[368638537,1751257850707,-151.0,0.00020604,2]
[368638538,1751257850716,-4112.22560431,0.00020624,3]
[368638539,1751257850725,-151.0,0.00020652,4]
[368638540,1751257850734,-7461.7292633,0.00020659,2]
[368638541,1751257850744,-460.0,0.00020688,2]
[368638542,1751257850752,-460.0,0.00020688,2]
[368638543,1751257850762,-1703.57,0.00020688,2]
[368638544,1751257850772,-2602.4,0.00020689,2]
[368638545,1751257850781,-2749.34,0.00020689,2]
[368638546,1751257850791,-475.12,0.00020689,2]
[368638547,1751257850801,-460.0,0.00020689,2]
[368638548,1751257850810,-457.06048945,0.00020689,2]
[368638549,1751257850820,-2638.81,0.00020689,2]
[368638550,1751257850829,-2329.11,0.00020689,2]
[368638551,1751257850839,-3030.06,0.00020689,2]
[368638552,1751257850849,-460.0,0.00020689,2]
[368638553,1751257850857,-460.0,0.00020689,2]
[368638554,1751257850867,-151.0,0.00020689,2]
[368638555,1751257850876,-154.405057,0.00020689,2]
[368638556,1751257850885,-1427.46,0.00020689,2]
[368638557,1751257850894,-479.18,0.00020689,2]
[368638558,1751257850904,-364.0,0.0002069,2]
[368638559,1751257850913,-516.73,0.00020691,2]
[368638560,1751257850923,-460.0,0.00020691,2]
[368638561,1751257850932,-332.1856276,0.00020692,2]
[368638562,1751257850941,-581.44,0.00020692,2]
[368638563,1751257850950,-573.66,0.00020692,2]
[368638564,1751257850960,-460.0,0.00020692,2]
[368638565,1751257850969,-889.3,0.00020692,2]
[368638566,1751257850979,-460.0,0.00020692,2]
[368638567,1751257850988,-17303.36,0.00020692,2]
[368638568,1751257850997,-460.0,0.00020692,2]
[368638569,1751257851007,-1049.57,0.00020693,2]
[368638570,1751257851017,-460.0,0.00020693,2]
[368638571,1751257851026,-488.34,0.00020693,2]
[368638572,1751257851036,-460.0,0.00020693,2]
[368638573,1751257851046,-577.66,0.00020693,2]
[368638574,1751257851057,-151.0,0.00020693,2]
[368638575,1751257851180,-651.29,0.00020693,2]
[368638576,1751257851190,-889.34,0.00020693,2]
[368638577,1751257851200,-460.0,0.00020697,2]
[368638578,1751257851210,-489.95,0.00020697,2]
[368638579,1751257851219,-622.37,0.00020697,2]
[368638580,1751257851229,-517.03,0.00020697,2]
[368638581,1751257851238,-1633.77,0.00020697,2]
[368638582,1751257851247,-4932.33,0.00020697,2]
[368638583,1751257851257,-1412.82,0.00020697,2]
[368638584,1751257851267,-460.0,0.00020697,2]
[368638585,1751257851276,-460.0,0.00020697,2]
[368638586,1751257851286,-12500.0,0.00020698,2]
[368638587,1751257851296,-151.0,0.00020698,2]
[368638588,1751257851305,-151.953828,0.00020698,2]
[368638589,1751257851314,-4112.45,0.00020698,2]
[368638590,1751257851324,-1086.32,0.00020698,2]
[368638591,1751257851333,-1057.17,0.00020698,2]
[368638592,1751257851343,-466.7751742,0.00020698,2]
[368638593,1751257851352,-460.0,0.00020698,2]
[368638594,1751257851362,-1680.47,0.00020698,2]
[368638595,1751257851371,-1290.69,0.00020698,2]
[368638596,1751257851380,-935.71,0.00020698,2]
[368638597,1751257851389,-460.0,0.00020698,2]
[368638598,1751257851399,-1903.25,0.00020698,2]
[368638599,1751257851408,-460.0,0.00020698,2]
[368638600,1751257851418,-460.0,0.00020698,2]
[368638601,1751257851428,-460.0,0.00020699,2]
[368638602,1751257851438,-151.0,0.00020699,2]
[368638603,1751257851450,-151.0,0.00020699,2]
[368638604,1751257851460,-707.14,0.00020699,2]
[368638605,1751257851470,-151.0,0.00020699,2]
[368638606,1751257851481,-194.109581,0.00020699,2]
[368638607,1751257851490,-194.109581,0.00020699,2]
[368638608,1751257851499,-151.0,0.00020699,2]
[368638609,1751257851509,-151.0,0.00020699,2]
[368638610,1751257851518,-12500.0,0.00020707,2]
[368638611,1751257851527,-12500.0,0.00020715,2]
[368638612,1751257851536,-215.0738,0.00020717,2]
[368638613,1751257851546,-12500.0,0.00020724,2]
[368638614,1751257851555,-12500.0,0.00020733,2]
[368638615,1751257851565,-151.48498821,0.00020738,2]
[368638616,1751257851573,-12500.0,0.00020742,2]
[368638617,1751257851583,-12500.0,0.00020751,2]
[368638618,1751257851592,-12500.0,0.00020759,2]
[368638619,1751257851601,-12500.0,0.00020768,2]
[368638620,1751257851610,-12500.0,0.00020777,2]
[368638621,1751257851623,-2674.82394565,0.00020779,2]
[368638622,1751257851632,-12500.0,0.00020786,2]
[368638623,1751257851642,-151.0,0.00020786,2]
[368638624,1751257851651,-12500.0,0.00020795,2]
[368638625,1751257851660,-151.0,0.00020795,2]
[368638626,1751257851670,-4112.22560431,0.00020797,4]
[368638627,1751257851680,-151.0,0.00020803,2]
[368638628,1751257851689,-151.0,0.00020803,2]
[368638629,1751257851698,-151.0,0.00020803,2]
[368638630,1751257851708,-151.0,0.00020803,2]
[368638631,1751257851717,-12500.0,0.00020803,2]
[368638632,1751257851726,-168.0,0.00020812,2]
[368638633,1751257851736,-151.0,0.00020812,2]
[368638634,1751257851745,-151.0,0.00020812,2]
[368638635,1751257851754,-151.0,0.00020812,2]
[368638636,1751257851764,-151.0,0.00020812,2]
[368638637,1751257851773,-151.0,0.00020812,2]
[368638638,1751257851782,-12500.0,0.00020812,2]
[368638639,1751257851791,-12500.0,0.00020821,2]
[368638640,1751257851800,-311.546689,0.00020824,4]
[368638641,1751257851809,-151.0,0.00020824,2]
[368638642,1751257851819,-151.0,0.00020844,4]
[368638643,1751257851830,-366.3004382,0.00020877,2]
[368638644,1751257851840,-366.3004382,0.00020877,2]
[368638645,1751257851850,-366.3004382,0.00020877,2]
[368638646,1751257851859,-524.55407094,0.000209,3]
[368638647,1751257851868,-213.84631524,0.000209,3]
[368638648,1751257851878,-847.41730813,0.000209,3]
[368638649,1751257851887,-12569.13231816,0.000209,3]
[368638650,1751257851896,-460.0,0.00020962,2]
[368638651,1751257851906,-488.01909533,0.00020962,2]
[368638652,1751257851916,-1703.57,0.00020962,2]
[368638653,1751257851925,-2602.4,0.00020963,2]
[368638654,1751257851935,-2749.34,0.00020963,2]
[368638655,1751257851944,-475.12,0.00020963,2]
[368638656,1751257851954,-460.0,0.00020963,2]
[368638657,1751257851963,-2638.81,0.00020963,2]
[368638658,1751257851972,-2329.11,0.00020963,2]
[368638659,1751257851982,-3030.06,0.00020963,2]
[368638660,1751257851991,-460.0,0.00020963,2]
[368638661,1751257852000,-460.0,0.00020963,2]
[368638662,1751257852011,-1427.46,0.00020963,2]
[368638663,1751257852022,-479.18,0.00020963,2]
[368638664,1751257852033,-516.73,0.00020965,2]
[368638665,1751257852043,-460.0,0.00020965,2]
[368638666,1751257852052,-581.44,0.00020966,2]
[368638667,1751257852061,-573.66,0.00020966,2]
[368638668,1751257852071,-460.0,0.00020966,2]
[368638669,1751257852080,-889.3,0.00020966,2]
[368638670,1751257852088,-460.0,0.00020966,2]
[368638671,1751257852098,-17303.36,0.00020966,2]
[368638672,1751257852108,-460.0,0.00020966,2]
[368638673,1751257852117,-151.0,0.00020967,2]
[368638674,1751257852127,-1049.57,0.00020967,2]
[368638675,1751257852136,-460.0,0.00020967,2]
[368638676,1751257852146,-488.34,0.00020967,2]
[368638677,1751257852155,-460.0,0.00020967,2]
[368638678,1751257852164,-577.66,0.00020967,2]
[368638679,1751257852174,-651.29,0.00020967,2]
[368638680,1751257852183,-889.34,0.00020967,2]
[368638681,1751257852193,-4112.22560431,0.00020969,4]
[368638682,1751257852204,-151.0,0.00020971,2]
[368638683,1751257852214,-151.0,0.00020971,2]
[368638684,1751257852223,-151.0,0.00020971,2]
[368638685,1751257852232,-460.0,0.00020971,2]
[368638686,1751257852241,-151.0,0.00020971,2]
[368638687,1751257852251,-194.109581,0.00020971,2]
[368638688,1751257852260,-194.109581,0.00020971,2]
[368638689,1751257852269,-489.95,0.00020971,2]
[368638690,1751257852279,-622.37,0.00020971,2]
[368638691,1751257852288,-517.03,0.00020971,2]
[368638692,1751257852297,-151.0,0.00020971,2]
[368638693,1751257852306,-291.930614,0.00020971,2]
[368638694,1751257852315,-1633.77,0.00020971,2]
[368638695,1751257852324,-4932.33,0.00020971,2]
[368638696,1751257852334,-1412.82,0.00020971,2]
[368638697,1751257852344,-460.0,0.00020971,2]
[368638698,1751257852354,-460.0,0.00020971,2]
[368638699,1751257852363,-4112.45,0.00020972,2]
[368638700,1751257852372,-1086.32,0.00020972,2]
[368638701,1751257852382,-1057.17,0.00020972,2]
[368638702,1751257852393,-460.0,0.00020972,2]
[368638703,1751257852403,-1680.47,0.00020972,2]
[368638704,1751257852412,-1290.69,0.00020972,2]
[368638705,1751257852421,-935.71,0.00020972,2]
[368638706,1751257852431,-460.0,0.00020972,2]
[368638707,1751257852440,-1903.25,0.00020972,2]
[368638708,1751257852450,-460.0,0.00020972,2]
[368638709,1751257852460,-460.0,0.00020972,2]
[368638710,1751257852469,-151.0,0.00020973,2]
[368638711,1751257852479,-151.0,0.00020973,2]
[368638712,1751257852487,-198.45258199,0.00020973,2]
[368638713,1751257852497,-707.14,0.00020973,2]
[368638714,1751257852506,-150.99245078,0.00020978,2]
[368638715,1751257852515,-727916.65121237,0.00020999,2]
[368638716,1751257852565,-1938.42973672,0.00020999,2]
[368638717,1751257852879,-460.0,0.00018225,2]
[368638718,1751257852888,-460.0,0.00018228,2]
[368638719,1751257852898,-463.16399967,0.00018233,2]
[368638720,1751257852907,-463.09,0.00018497,2]
[368638721,1751257852916,-460.0,0.00018499,2]
[368638722,1751257852925,-460.0,0.00018502,2]
[368638723,1751257852934,-463.09,0.00018771,2]
[368638724,1751257852943,-460.0,0.00018776,2]
[368638725,1751257852952,-463.09,0.00019045,2]
[368638726,1751257852961,-463.09,0.00019319,2]
[368638727,1751257852970,-463.09,0.00019593,2]
[368638728,1751257852979,-463.09,0.00019867,2]
[368638729,1751257852989,-33252.61629228,0.00020999,2]
[368638730,1751257853001,-509.7,0.00020999,2]
[368638731,1751257854585,-118.15655801,0.00020999,2]
[368638732,1751257854803,-460.0,0.00018231,2]
[368638733,1751257854813,-460.0,0.00018505,2]
[368638734,1751257854823,-460.0,0.0001905,2]
[368638735,1751257854833,-460.0,0.00019324,2]
[368638736,1751257854843,-460.0,0.00019598,2]
[368638737,1751257854851,-460.0,0.00019872,2]
[368638738,1751257854861,-463.09,0.00020141,2]
[368638739,1751257854870,-460.0,0.00020146,2]
[368638740,1751257854879,-193.64660351,0.00020415,2]
[368638741,1751257854891,-269.44339649,0.00020415,2]
[368638742,1751257854900,-460.0,0.0002042,2]
[368638743,1751257854910,-463.09,0.00020689,2]
[368638744,1751257854919,-463.09,0.00020963,2]
[368638745,1751257854929,-16567.60988368,0.00020999,2]
[368638746,1751257854941,-17893.60113311,0.00020999,2]
[368638747,1751257854953,-6164.48318362,0.00020999,2]
[368638748,1751257854964,-2080.03625348,0.00020999,2]
[368638749,1751257854977,-761.00200904,0.00020999,2]
[368638750,1751257854988,-2597.46,0.00020999,2]
[368638751,1751257855115,-460.0,0.00018225,2]
[368638752,1751257855124,-460.0,0.00018499,2]
[368638753,1751257855133,-460.0,0.00020694,2]
[368638754,1751257855142,-460.0,0.00020968,2]
[368638755,1751257855151,-19804.00487871,0.00020999,2]
[368638756,1751257855162,-694.50938659,0.00020999,2]
[368638757,1751257855178,-468736.54848807,0.00020999,2]
[368638758,1751257855191,-2178.34074145,0.00020999,2]
[368638759,1751257855202,-14557.18957134,0.00020999,2]
[368638760,1751257869788,150.0,0.00023,30]
[368638761,1751257870983,-281.59543759,0.00018219,2]
[368638762,1751257876274,-18.40456241,0.00018219,2]
[368638763,1751257876296,-181.19682933,0.00018219,2]
[368638765,1751257954510,800.0,0.00024658,120]
[368638766,1751258085592,-156.88144316,0.00018121,2]
[368638767,1751258157750,1466.5807266,0.0001736,2]
[368638768,1751258158346,-221.56745779,0.00018122,2]
[368638769,1751258244709,1000.0,0.00023,30]
[368638770,1751258268241,-156.88144312,0.0001812,2]
[368638771,1751258273581,1000.0,0.00023,30]
[368638772,1751258297446,1000.0,0.00023,30]
[368638773,1751258322982,1000.0,0.00023,30]
[368638774,1751258390786,1000.0,0.00023,30]
[368638775,1751258404118,1000.0,0.00023,30]
[368638777,1751258483252,1000.0,0.00023,30]
[368638778,1751258491080,203.9287656,0.0001722,2]
[368638780,1751258516082,175.29106,0.00013699,2]
[368638823,1751258690830,173.5557,0.0002254,30]
[368638829,1751259032678,-155.98203401,0.00018117,2]
[368638830,1751259032688,-300.0,0.00018215,2]
[368638831,1751259032697,-300.0,0.00018215,2]
[368638832,1751259032707,-1200.0,0.00018215,2]
[368638833,1751259032716,-1582.92061082,0.00018216,2]
[368638834,1751259032728,-5226.81627258,0.00018216,2]
[368638835,1751259032741,-1561.79138793,0.00018216,2]
[368638851,1751259038614,-203.18624129,0.00018215,2]
[368638852,1751259038624,-500.0,0.00018215,2]
[368638853,1751259038634,-179.72941688,0.00018215,2]
[368638854,1751259038642,-34.48491665,0.00018215,2]
[368638855,1751259038667,-465.51508335,0.00018215,2]
[368638856,1751259038676,-500.0,0.00018215,2]
[368638857,1751259038685,-500.0,0.00018215,2]
[368638858,1751259038694,-500.0,0.00018215,2]
[368638859,1751259038703,-500.0,0.00018215,2]
[368638860,1751259038712,-500.0,0.00018215,2]
[368638861,1751259038722,-500.0,0.00018215,2]
[368638862,1751259038730,-500.0,0.00018215,2]
[368638863,1751259038739,-500.0,0.00018215,2]
[368638864,1751259038748,-500.0,0.00018215,2]
[368638865,1751259038757,-500.0,0.00018215,2]
[368638866,1751259038766,-500.0,0.00018215,2]
[368638867,1751259038775,-500.0,0.00018215,2]
[368638868,1751259038784,-500.0,0.00018215,2]
[368638869,1751259038793,-500.0,0.00018215,2]
[368638870,1751259038803,-500.0,0.00018215,2]
[368638871,1751259038812,-500.0,0.00018215,2]
[368638872,1751259038821,-500.0,0.00018215,2]
[368638873,1751259038830,-500.0,0.00018215,2]
[368638874,1751259038839,-500.0,0.00018215,2]
[368638875,1751259038848,-500.0,0.00018215,2]
[368638876,1751259038857,-500.0,0.00018215,2]
[368638877,1751259038866,-500.0,0.00018215,2]
[368638878,1751259038874,-500.0,0.00018215,2]
[368638879,1751259038883,-500.0,0.00018215,2]
[368638880,1751259038892,-500.0,0.00018215,2]
[368638881,1751259038901,-500.0,0.00018215,2]
[368638882,1751259038911,-500.0,0.00018215,2]
[368638883,1751259038920,-500.0,0.00018215,2]
[368638884,1751259038929,-500.0,0.00018215,2]
[368638885,1751259038939,-500.0,0.00018215,2]
[368638886,1751259038948,-500.0,0.00018215,2]
[368638887,1751259038957,-500.0,0.00018215,2]
[368638889,1751259038966,-358.96825378,0.00018215,2]
[368638891,1751259038976,-500.0,0.00018215,2]
[368638893,1751259038986,-13551.12829971,0.00018216,2]
[368638896,1751259038995,-171.0,0.00018216,2]
[368638897,1751259039004,-460.0,0.00018216,2]
[368638899,1751259039013,-460.0,0.00018216,2]
[368638901,1751259039023,-460.0,0.00018216,2]
[368638903,1751259039032,-1363.85,0.00018216,2]
[368638906,1751259039042,-460.0,0.00018216,2]
[368638908,1751259039051,-856.8102065,0.00018216,2]
[368638910,1751259039063,-655.2897935,0.00018216,2]
[368638912,1751259039071,-2131.26,0.00018217,2]
[368638914,1751259039081,-602.3583037,0.00018217,2]
[368638916,1751259039090,-462.73643212,0.00018217,2]
[368638918,1751259039100,-460.0,0.00018217,2]
[368638919,1751259039109,-2014.01,0.00018217,2]
[368638921,1751259039119,-460.0,0.00018217,2]
[368638923,1751259039129,-460.0,0.00018217,2]
[368638925,1751259039139,-460.0,0.00018217,2]
[368638927,1751259039148,-460.0,0.00018217,2]
[368638929,1751259039157,-460.0,0.00018217,2]
[368638930,1751259039167,-1797.48,0.00018217,2]
[368638932,1751259039176,-460.0,0.00018217,2]
[368638934,1751259039185,-2389.95,0.00018217,2]
[368638935,1751259039195,-460.0,0.00018217,2]
[368638936,1751259039204,-2078.6,0.00018217,2]
[368638938,1751259039213,-460.0,0.00018217,2]
[368638940,1751259039223,-1134.47,0.00018217,2]
[368638941,1751259039232,-103.78349506,0.00018217,2]
[368638942,1751259039250,-356.21650494,0.00018217,2]
[368638943,1751259039259,-460.0,0.00018217,2]
[368638944,1751259039268,-472.03905629,0.00018217,2]
[368638945,1751259039277,-460.0,0.00018217,2]
[368638946,1751259039287,-460.0,0.00018217,2]
[368638947,1751259039296,-572.93834507,0.00018219,2]
[368638948,1751259039306,-460.0,0.00018219,2]
[368638949,1751259039315,-460.0,0.00018219,2]
[368638950,1751259039326,-463.58216847,0.00018219,2]
[368638951,1751259039339,-460.0,0.00018219,2]
[368638952,1751259039348,-460.0,0.00018219,2]
[368638953,1751259039357,-407.45376163,0.00018219,2]
[368638954,1751259039367,-460.0,0.00018219,2]
[368638955,1751259039376,-460.0,0.00018219,2]
[368638956,1751259039386,-460.0,0.00018219,2]
[368638957,1751259039395,-460.0,0.00018219,2]
[368638958,1751259039405,-460.0,0.00018219,2]
[368638959,1751259039414,-469.87,0.00018219,2]
[368638960,1751259039423,-460.0,0.00018219,2]
[368638961,1751259039433,-460.0,0.00018219,2]
[368638962,1751259039443,-581.4,0.00018219,2]
[368638963,1751259039452,-460.0,0.00018219,2]
[368638964,1751259039461,-460.0,0.00018219,2]
[368638965,1751259039471,-460.0,0.00018219,2]
[368638966,1751259039480,-523.73,0.00018219,2]
[368638967,1751259039490,-1421.16,0.00018219,2]
[368638968,1751259039499,-460.0,0.00018219,2]
[368638969,1751259039509,-460.0,0.00018219,2]
[368638970,1751259039519,-460.0,0.00018219,2]
[368638971,1751259039529,-584.2535034,0.00018219,2]
[368638972,1751259039539,-460.0,0.00018219,2]
[368638974,1751259039549,-460.0,0.00018219,2]
[368638975,1751259039558,-460.0,0.00018219,2]
[368638976,1751259039567,-460.0,0.00018219,2]
[368638977,1751259039577,-460.0,0.00018219,2]
[368638978,1751259039587,-460.0,0.00018219,2]
[368638979,1751259039596,-460.0,0.00018219,2]
[368638980,1751259039605,-460.0,0.00018219,2]
[368638981,1751259039614,-460.0,0.00018219,2]
[368638982,1751259039623,-474.59,0.00018219,2]
[368638983,1751259039634,-460.0,0.00018219,2]
[368638984,1751259039644,-460.0,0.00018219,2]
[368638985,1751259039653,-782.71,0.00018219,2]
[368638986,1751259039662,-460.0,0.00018219,2]
[368638987,1751259039672,-504.68,0.00018219,2]
[368638988,1751259039682,-460.0,0.00018219,2]
[368638989,1751259039690,-11814.45,0.00018219,2]
[368638990,1751259039700,-722.46,0.00018219,2]
[368638991,1751259039710,-460.0,0.00018219,2]
[368638992,1751259039719,-460.0,0.00018219,2]
[368638993,1751259039729,-460.0,0.00018219,2]
[368638994,1751259039740,-1050.23,0.00018219,2]
[368638995,1751259039749,-460.0,0.00018219,2]
[368638996,1751259039758,-460.0,0.00018219,2]
[368638997,1751259039767,-460.0,0.00018219,2]
[368638998,1751259039777,-825.19,0.00018219,2]
[368638999,1751259039787,-460.0,0.00018219,2]
[368639000,1751259039797,-460.0,0.00018219,2]
[368639001,1751259039807,-460.0,0.00018219,2]
[368639002,1751259039817,-460.0,0.00018219,2]
[368639003,1751259039826,-460.0,0.0001822,2]
[368639004,1751259039834,-500.0,0.0001822,2]
[368639005,1751259039842,-460.0,0.0001822,2]
[368639006,1751259039851,-423.95001621,0.0001822,2]
[368639007,1751259039858,-460.0,0.0001822,2]
[368639008,1751259039867,-463.81811296,0.0001822,2]
[368639009,1751259039874,-467.40961584,0.0001822,2]
[368639010,1751259039883,-460.0,0.0001822,2]
[368639011,1751259039892,-460.0,0.0001822,2]
[368639012,1751259039901,-460.0,0.0001822,2]
[368639013,1751259039911,-461.34490365,0.0001822,2]
[368639014,1751259039920,-460.0,0.0001822,2]
[368639015,1751259039930,-460.83912291,0.0001822,2]